Cogmind - Beta 15 @@@ ROGUE MODE // 2025.06.19 @ 01:11:01 Player: 7604 Result: Destroyed by B-75 Beast with Heavy Plasma Cannon Performance ------------- Evolutions (4) 2000 Regions Visited (6) 1200 Robots Destroyed (76) 380 Value Destroyed (1978) 1978 Prototype IDs (35) 700 Alien Tech Used (0) 0 Bonus (2917) 2917 TOTAL SCORE: 9175 Bonus ------- Follower Combat Kills 154 Delivered SUBCON Basin 2000 Registered with UFD 300 Met Optimus in HQ 500 Friendly Fire -37 Cogmind --------- Core Integrity 0/850 Matter 106/300 Energy 47/100 System Corruption 11% Temperature Warning (320) Movement Core (50) Location -6/Extension Parts ------- > --- POWER (1) -------- (None) > --- PROPULSION (5) --- (None) > --- UTILITY (7) ------ Machine Analyzer Armor Integrity Analyzer Hacking Suite > --- WEAPON (2) ------- (None) > --- INVENTORY (5) ---- Medium Storage Unit Deep Structural Scanner Mapping Drone Bay (2/3) Plasma Cutter Multitool Peak State ------------ > --- POWER ------------ Light Nuclear Core > --- PROPULSION ------- Nuclear Pulse Thruster Flightbrick > --- UTILITY ---------- Large Storage Unit Deep Structural Scanner Machine Analyzer Spectral Analyzer Seismic Detector Advanced Salvage Targeting Computer Hacking Suite Improved Hacking Suite Tech Extrapolator > --- WEAPON ----------- Heavy Missile Launcher Power Sword > --- INVENTORY -------- Light Angular Momentum Engine Transmission Jammer ECM Suite Improved Reaction Control System Improved Light Armor Plating Layered Medium Armor Plating Mapping Drone Bay Precision Assault Rifle Precision Assault Rifle KE Penetrator Antimatter Cannon Rocket Launcher Plasma Cutter Multitool [Rating: 96] Favorites ----------- Power Subdweller Power Source Engine Subdweller Power Source Power Core Fission Core Propulsion Light Treads Treads Light Treads Leg Aluminum Leg Flight Unit Flightbrick Utility Seismic Detector Device Seismic Detector Storage High-capacity Storage Unit Processor Spectral Analyzer Hackware Hacking Suite Protection Improved Light Armor Plating Weapon Beam Cannon Energy Gun Precision Shock Rifle Energy Cannon Beam Cannon Ballistic Gun Subdweller Machine Gun Ballistic Cannon Antimatter Cannon Launcher Rocket Launcher Slashing Weapon Power Sword Piercing Weapon Spear Build | -11 -10 -10 -9 -9 -6 -6 ------- Run | Yrd Mat Sub Rec Scr Fac Ext Slots Evolved 8 | . . . . . 8 . Power . | . . . . . . . Propulsion 3 | . . . . . 3 . Utility 5 | . . . . . 5 . Weapon . | . . . . . . . Parts Attached 71 | 1 14 6 3 5 30 12 Power 6 | . 1 1 . 1 2 1 Engine 3 | . 1 1 . . 1 . Core 3 | . . . . 1 1 1 Reactor . | . . . . . . . Propulsion 16 | . 4 2 3 1 2 4 Treads 9 | . 3 2 3 1 . . Leg 4 | . . . . . . 4 Wheel . | . . . . . . . Hover . | . . . . . . . Flight 3 | . 1 . . . 2 . Utility 26 | 1 3 . . 1 17 4 Device 8 | 1 1 . . . 5 1 Storage 5 | . 2 . . 1 . 2 Processor 7 | . . . . . 6 1 Hackware 3 | . . . . . 3 . Protection 3 | . . . . . 3 . Artifact . | . . . . . . . Weapon 23 | . 6 3 . 2 9 3 Energy Gun 1 | . . . . . 1 . Energy Cannon 4 | . 3 1 . . . . Ballistic Gun 9 | . 2 2 . 2 2 1 Ballistic Cannon 3 | . . . . . 3 . Launcher 3 | . 1 . . . 1 1 Special Weapon . | . . . . . . . Impact Weapon . | . . . . . . . Slashing Weapon 2 | . . . . . 1 1 Piercing Weapon 1 | . . . . . 1 . Special Melee Weapon . | . . . . . . . Unidentified Prototypes 6 | . 1 . . . 5 . Parts Lost 23 | . . 2 1 . 4 16 Power 2 | . . . . . 1 1 Propulsion 8 | . . 1 1 . 1 5 Utility 7 | . . . . . 2 5 Weapon 6 | . . 1 . . . 5 Highest Loss Streak 14 | . . 2 1 . 2 14 To Critical Strikes . | . . . . . . . Average Backups 10 | 6 9 5 9 15 13 10 Power . | 1 1 1 . . 1 . Propulsion 2 | 4 2 2 4 3 . 2 Utility 3 | . 1 . 1 7 5 2 Weapon 2 | 1 3 . 1 2 4 3 Tool/Special . | . . . . . . . Unused Backups 43 | . 7 12 4 12 5 3 Power 6 | . . 4 . . 2 . Propulsion 11 | . 2 4 . 5 . . Utility 11 | . 1 2 1 4 2 1 Weapon 12 | . 4 1 3 3 1 . Tool/Special 3 | . . 1 . . . 2 Average Slot Usage (%) 85 | . 100 99 99 73 57 70 Engine 8 | . 14 14 14 3 . 2 Core 1 | . . . . 3 4 1 Treads 22 | . 26 27 27 28 1 . Flight 1 | . . . . . 9 4 Device 13 | . 14 13 14 14 10 13 Storage 12 | . 14 14 14 13 5 5 Processor 3 | . . . . . 15 18 Hackware 1 | . . . . . 2 10 Energy Cannon 10 | . 20 18 14 3 . . Ballistic Gun 7 | . 6 9 14 5 1 5 Peak Build Rating 96 | 7 9 31 31 27 96 95 Average Rating 29 | 6 7 25 20 15 73 88 On Entrance 25 | 6 7 9 31 17 27 81 Naked Turns . | . . . . . . . Heaviest Build 58 | 12 54 58 58 58 44 34 Greatest Support 43 | 20 40 40 40 43 43 24 Greatest Overweight (x) 9 | . 1 1 2 1 9 1 Average Overweight (x) . | . . 1 1 . . . Largest Inventory Capacity 20 | 8 20 20 20 20 15 15 Average Capacity 17 | 8 11 20 20 19 15 10 Most Carried 20 | 6 14 20 20 20 15 12 Average Carried 15 | 6 9 19 16 18 14 10 Final Capacity 20 | 8 20 20 20 15 15 5 Final Carried 20 | 6 14 20 20 15 14 5 Class Distribution -------------------- 60% | Mutant 29% | Scavenger-Mutant 7% | Hacker-Mutant Dominant Class ---------------- Mutant | -10/Materials Mutant | -10/Subcaves Scavenger-Mutant | -9/Recycling Mutant | -9/Scraptown Mutant | -6/Factory Hacker-Mutant | -6/Extension Resources | -11 -10 -10 -9 -9 -6 -6 ----------- Run | Yrd Mat Sub Rec Scr Fac Ext Matter Collected 2160 | 234 357 235 32 68 597 637 Remotely . | . . . . . . . Salvage Created 2821 | 84 715 406 186 58 684 688 Parts 170 | 1 50 27 10 3 43 36 Haulers Intercepted 5 | . 2 . . . 3 . Recyclers Shooed 3 | . 1 . . . . 2 Parts Field Recycled . | . . . . . . . Retrieved Matter . | . . . . . . . Parts Self-Destructed 8 | . . 8 . . . . Prevented . | . . . . . . . Kills | -11 -10 -10 -9 -9 -6 -6 ------- Run | Yrd Mat Sub Rec Scr Fac Ext Combat Hostiles Destroyed 44 | . 13 9 2 1 11 8 Guns 16 | . 6 1 . 1 3 5 Cannons 17 | . 7 8 2 . . . AOE 11 | . . . . . 8 3 Classes Destroyed 18 | 2 6 3 1 1 3 2 Worker 8 | . 1 . . . 6 1 Builder 2 | . . . . . 1 1 Tunneler 3 | 1 1 . . . 1 . Hauler 5 | . 2 . . . 3 . Recycler 5 | 1 1 . 1 . . 2 Mechanic 1 | . . . . . 1 . Operator 1 | . 1 . . . . . Turret 2 | . . 2 . . . . Watcher 5 | . 3 . . . . 2 Swarmer 17 | . 3 1 . . 10 3 Grunt 10 | . 10 . . . . . Duelist 1 | . . . . . . 1 Sentry 5 | . . . 2 . . 3 Hunter 1 | . . . . . 1 . Behemoth 1 | . . . . . . 1 Artisan 1 | . . 1 . . . . Subdweller 8 | . . 8 . . . . Ranger 1 | . . . . 1 . . Best Kill Streak 9 | 2 3 3 1 1 9 3 Combat Bots Only 5 | . 3 3 1 1 5 3 Max Kills in Single Turn 4 | 1 2 1 1 1 4 1 Gunslinging . | . . . . . . . Exploded 3 | . . . . . 3 1 Melee . | . . . . . . . Uniques/NPCs Destroyed . | . . . . . . . Combat | -11 -10 -10 -9 -9 -6 -6 -------- Run | Yrd Mat Sub Rec Scr Fac Ext Hostile Shots Fired 827 | . 29 99 4 . 133 562 Missed 308 | . 5 37 1 . 58 207 Hits 519 | . 24 62 3 . 75 355 Projectile 519 | . 24 62 3 . 75 355 Critical Strikes 8 | . 1 2 . 1 3 1 Damage Taken 5497 | . 286 689 46 22 1250 3204 Core 1011 | . 45 71 16 . 54 825 Absorbed by Shields . | . . . . . . . Regen/Repaired (Parts) 29 | . . . . . 29 . Core Remaining (%) 73 | 100 . . . 47 . . Volleys Fired 200 | 6 47 55 8 1 26 57 Largest 2 | 2 2 2 2 2 2 2 Hottest 120 | 40 120 120 110 60 66 72 Shots Fired 338 | 12 92 94 11 2 30 97 Gun 192 | 12 46 30 3 2 9 90 Cannon 126 | . 44 63 8 . 11 . Launcher 20 | . 2 1 . . 10 7 Special . | . . . . . . . Kinetic 203 | 12 46 30 3 2 20 90 Thermal 115 | . 44 63 8 . . . Explosive 20 | . 2 1 . . 10 7 Electromagnetic . | . . . . . . . Robot Hit Streak 14 | 2 9 12 3 1 7 14 Robot Miss Streak 4 | 2 4 2 3 1 1 2 Penetration Max 1 | . . . . . . 1 Secondary Targets . | . . . . . . . Shots Hit Robots 225 | 7 57 52 3 1 29 76 Core Hits 120 | 3 30 20 3 1 24 39 Critical Kills 1 | . . . . . . 1 Critical Parts Destroyed 2 | . . 1 . . . 1 Critical Strikes 4 | . . 1 . . 1 2 Destroy 3 | . . 1 . . . 2 Sever 1 | . . . . . 1 . Melee Attacks 68 | . . . . . 63 5 Impact . | . . . . . . . Slashing 49 | . . . . . 44 5 Piercing 19 | . . . . . 19 . Sneak Attacks 9 | . . . . . 7 2 Combat Hostiles . | . . . . . . . Follow-up Attacks . | . . . . . . . Damage Inflicted 6621 | 73 863 957 91 14 2314 2309 Guns 2453 | 73 352 270 . 14 112 1632 Cannons 1331 | . 492 687 82 . 70 . Explosions 1341 | . . . . . 948 393 Melee 1468 | . . . . . 1184 284 Ramming 28 | . 19 . 9 . . . Kinetic 2523 | 73 352 270 . 14 182 1632 Thermal 1526 | . 492 687 82 . 265 . Explosive 1076 | . . . . . 683 393 Electromagnetic . | . . . . . . . Impact . | . . . . . . . Slashing 1237 | . . . . . 953 284 Piercing 231 | . . . . . 231 . Highest Corruption 11 | . . . . . 11 11 Average Corruption 8 | . . . . . 4 11 Corruption Purged . | . . . . . . . Corruption Blocked . | . . . . . . . Effects 52 | . . . . . 16 36 Message Errors 9 | . . . . . 1 8 Matter Fused 14 | . . . . . 5 9 Heat Flow Errors 4 | . . . . . 2 2 Energy Discharges 6 | . . . . . 2 4 Parts Fused 1 | . . . . . . 1 Data Loss (minor) 7 | . . . . . 3 4 Data Loss (major) 4 | . . . . . 2 2 Misfires 2 | . . . . . . 2 Alerts 1 | . . . . . . 1 Weapon Failures 4 | . . . . . 1 3 Overload Shots . | . . . . . . . Overflow Damage 328 | . . 9 . . 258 61 Projectiles 9 | . . 9 . . . . Explosions 66 | . . . . . 66 . Melee 253 | . . . . . 192 61 Knockbacks 2 | . . . . . 2 . Impact . | . . . . . . . Kinetic 2 | . . . . . 2 . Secondary . | . . . . . . . Self-Inflicted Damage 93 | . . . . . 93 . Shots 3 | . . . . . 3 . Rammed 9 | . 8 . 1 . . . Targets Rammed 11 | . 9 . 2 . . . Kicked . | . . . . . . . Crushed 2 | . 1 . 1 . . . Highest Temperature 456 | . 126 312 120 9 456 318 Average Temperature 54 | . 40 28 53 6 148 60 Received Heat Transfer 1694 | . 156 477 9 . 24 1028 Effects 4 | . . . . . 3 1 Interference 2 | . . . . . 2 . Matter Decay 2 | . . . . . 1 1 Siege Activations . | . . . . . . . Martial Activations . | . . . . . . . Shielding Activations . | . . . . . . . Robots Disrupted . | . . . . . . . Combat Hostiles . | . . . . . . . Robots Corrupted . | . . . . . . . Combat Hostiles . | . . . . . . . Parts Fried . | . . . . . . . Impact Corruptions . | . . . . . . . Robots Melted . | . . . . . . . Combat Hostiles . | . . . . . . . Parts Melted 3 | . 2 1 . . . . Heat Transferred 2803 | . 1036 1406 111 . 250 . Parts Sabotaged . | . . . . . . . Parts Stolen . | . . . . . . . Parts Stripped . | . . . . . . . Power Chain Reactions . | . . . . . . . Alert | -11 -10 -10 -9 -9 -6 -6 ------- Run | Yrd Mat Sub Rec Scr Fac Ext Maximum Alert Level 1 | . . . . . 1 . Low Security (%) 90 | 100 100 . 100 . 58 100 Level 1 9 | . . . . . 41 . Level 2 . | . . . . . . . Level 3 . | . . . . . . . Level 4 . | . . . . . . . Level 5 . | . . . . . . . High Security . | . . . . . . . Max Security . | . . . . . . . Peak Influence 381 | 10 185 . 84 . 381 191 Initial 144 | . . . 73 . . 144 Average 82 | 2 74 . 16 . 165 90 Influence Increases 2355 | 10 558 195 184 . 1018 390 Destroy 0b10 Robot/C 880 | . 260 60 40 . 280 240 Destroy 0b10 Robot/NC 155 | 10 45 . 5 . 60 35 Destroy Leader 130 | . 60 . . . 56 14 Allied During Kill 44 | . . . . . . 44 Successful Hack 139 | . 46 . 15 . 73 5 Select Force Hacks 180 | . 60 . 120 . . . Disable Machine 150 | . . . . . 150 . Destroy Structure 212 | . 27 . 4 . 129 52 Partial Spotted 60 | . . . . . 60 . Lose Combat Pursuer 405 | . 60 135 . . 210 . Influence Decreases 2355 | 10 447 153 337 . 723 685 Entered New Map 285 | . . 54 80 . . 151 Time Decay 1617 | 10 447 99 247 . 433 381 Lost Part 84 | . . . 10 . 40 34 Lost Ally 219 | . . . . . 100 119 Purge Threat 150 | . . . . . 150 . Squads Dispatched 22 | . 3 . . . 18 1 Investigation 11 | . 2 . . . 9 . Extermination 4 | . . . . . 4 . Reinforcement 6 | . 1 . . . 4 1 Assault . | . . . . . . . Garrison 1 | . . . . . 1 . Intercept . | . . . . . . . Searches Triggered . | . . . . . . . Construction Impeded 2 | . . . . . 1 1 Haulers Reinforced 1 | . . . . . 1 . Active Scanning Responses . | . . . . . . . Cargo Convoy Interrupts . | . . . . . . . Stealth | -11 -10 -10 -9 -9 -6 -6 --------- Run | Yrd Mat Sub Rec Scr Fac Ext Distress Signals 3 | . . . . . 2 1 Communications Jammed . | . . . . . . . Distress Signals . | . . . . . . . Times Spotted 100 | . 22 18 1 1 40 18 Peak Tracking Total 6 | . 3 2 1 1 6 5 Tactical Retreats 16 | . 4 5 . . 7 . Traps | -11 -10 -10 -9 -9 -6 -6 ------- Run | Yrd Mat Sub Rec Scr Fac Ext Traps Triggered 3 | . . . . . 3 . Indirectly . | . . . . . . . Trap Hack Attempts . | . . . . . . . Triggered . | . . . . . . . Disarmed . | . . . . . . . Reprogrammed . | . . . . . . . Reused . | . . . . . . . Traps Extracted . | . . . . . . . Installed . | . . . . . . . Triggered . | . . . . . . . Machines | -11 -10 -10 -9 -9 -6 -6 ---------- Run | Yrd Mat Sub Rec Scr Fac Ext Machines Disabled 11 | . . 1 . . 10 . Max in Single Turn 6 | . . 1 . . 6 . Garrison Access 1 | . . . . . 1 . Machines Repaired . | . . . . . . . Machines Dismantled . | . . . . . . . Machines Sabotaged . | . . . . . . . Overloaded Fab Kills . | . . . . . . . Hacking | -11 -10 -10 -9 -9 -6 -6 --------- Run | Yrd Mat Sub Rec Scr Fac Ext Machines Accessed 51 | . 9 3 8 5 24 2 Terminals 24 | . 7 . 3 . 12 2 Fabricators 3 | . . . . . 3 . Repair Stations 1 | . . . . . 1 . Recycling Units 13 | . 2 . 5 . 6 . Scanalyzers . | . . . . . . . Garrison Access 2 | . . . . . 2 . Total Hacks 152 | . 30 4 24 30 62 2 Successful 95 | . 17 4 14 30 28 2 Failed 55 | . 12 . 9 . 34 . Catastrophic 10 | . 1 . . . 9 . Database Lockouts 2 | . 1 . 1 . . . Manual 50 | . 18 . 16 . 16 . Terminals 67 | . 24 . 12 . 29 2 Fabricators 12 | . . . . . 12 . Repair Stations 3 | . . . . . 3 . Recycling Units 32 | . 6 . 12 . 14 . Scanalyzers . | . . . . . . . Garrison Access 4 | . . . . . 4 . Terminal Hacks 55 | . 7 4 2 30 10 2 Record 30 | . . 1 . 29 . . Part Schematic 3 | . . . . . 3 . Robot Analysis 3 | . 1 . 1 . 1 . Prototype ID Bank 3 | . 3 . . . . . Open Door 3 | . . 1 . . . 2 Branch Access Points 1 | . . . . . 1 . Terminal Index 1 | . . . . . 1 . Alert Level 3 | . . . 1 . 2 . Unreport Threat 1 | . . . . . 1 . Locate Traps 2 | . 2 . . . . . Hauler Manifests 1 | . . . . . 1 . Zone Layout 1 | . 1 . . . . . Proto ID Catalog 2 | . . 1 . 1 . . Release Object 1 | . . 1 . . . . Fabricator Hacks 5 | . . . . . 5 . Network Status 1 | . . . . . 1 . Load Schematic 3 | . . . . . 3 . Build 1 | . . . . . 1 . Repair Station Hacks 2 | . . . . . 2 . Scan Component 1 | . . . . . 1 . Repair 1 | . . . . . 1 . Recycling Unit Hacks 9 | . 1 . 4 . 4 . Retrieve Components 9 | . 1 . 4 . 4 . Scanalyzer . | . . . . . . . Garrison Access Hacks 1 | . . . . . 1 . Seal Access 1 | . . . . . 1 . Unauthorized Hacks 23 | . 9 . 8 . 6 . Terminals 12 | . 7 . 4 . 1 . Botnet 3 | . 1 . 1 . 1 . Operators 1 | . 1 . . . . . Skim 8 | . 5 . 3 . . . Fabricators . | . . . . . . . Repair Stations . | . . . . . . . Recycling Units 11 | . 2 . 4 . 5 . Tunnel 6 | . 2 . 4 . . . Fedlink 4 | . . . . . 4 . Scrapoids 1 | . . . . . 1 . Scanalyzers . | . . . . . . . Garrison Access . | . . . . . . . Data Cores Recovered . | . . . . . . . Used . | . . . . . . . Hacking Detections 35 | . 8 . 4 . 23 . Full Trace Events 4 | . . . . . 4 . Feedback Events . | . . . . . . . Feedback Blocked . | . . . . . . . Robot Schematics Acquired . | . . . . . . . Robots Built . | . . . . . . . Authchips . | . . . . . . . Time . | . . . . . . . Total Robot Build Rating . | . . . . . . . Part Schematics Acquired 25 | . . . . . 18 7 Parts Built 1 | . . . . . 1 . Authchips . | . . . . . . . Time 93 | . . . . . 93 . Total Part Build Rating 7 | . . . . . 7 . Parts Repaired 1 | . . . . . 1 . Time 44 | . . . . . 44 . Parts Recycled . | . . . . . . . Recycled Matter . | . . . . . . . Retrieved Matter . | . . . . . . . Retrieved Components 25 | . 9 . 12 . 4 . Parts Scanalyzed . | . . . . . . . Part Schematics Acquired . | . . . . . . . Parts Damaged . | . . . . . . . Bothacking | -11 -10 -10 -9 -9 -6 -6 ------------ Run | Yrd Mat Sub Rec Scr Fac Ext Used RIF Installer . | . . . . . . . Robots Hacked . | . . . . . . . Non-combat . | . . . . . . . Combat . | . . . . . . . Robot Hacks Applied . | . . . . . . . Relay Couplers Released . | . . . . . . . Fabnet Peak Effective % . | . . . . . . . Robots Rewired 8 | . . . . . . 8 Allies Hacked 2 | . . . . . . 2 Hacks Repelled . | . . . . . . . Allies | -11 -10 -10 -9 -9 -6 -6 -------- Run | Yrd Mat Sub Rec Scr Fac Ext Total Allies 14 | . . . . . 5 9 Largest Group 9 | . . . . . 5 9 Highest-Rated Group 237 | . . . . . 140 237 Highest-Rated Ally 39 | . . . . . 28 39 Total Orders 4 | . . . . . 4 . EXPLORE 1 | . . . . . 1 . RETURN 3 | . . . . . 3 . Ally Attacks 92 | . . . . . 29 63 Total Damage 1472 | . . . . . 410 1062 Kills 9 | . . . . . 3 6 Allies Corrupted 1 | . . . . . . 1 Allies Melted . | . . . . . . . Intel | -11 -10 -10 -9 -9 -6 -6 ------- Run | Yrd Mat Sub Rec Scr Fac Ext Active Infowar (turns) 12774 | 13 1960 3219 1572 3578 1418 1014 Optics 2215 | . . . . . 1221 994 Structural 1040 | . . . . . 145 895 Seismic 12694 | 13 1960 3219 1572 3578 1355 997 T.N.C. 719 | . . . . . 719 . Machine Analysis 1327 | . . . . . 313 1014 Jamming 12 | . . . . . 9 3 Robot Analysis Total 3 | . 1 . 1 . 1 . Derelict Logs Recovered 3 | . . 1 . 2 . . Drone Launches 4 | . . . . . 4 . Drone Recoveries 3 | . . . . . 3 . Exploration | -11 -10 -10 -9 -9 -6 -6 ------------- Run | Yrd Mat Sub Rec Scr Fac Ext Turns Passed 13017 | 44 2042 3349 1572 3578 1418 1014 Spaces Moved 7572 | 22 800 1253 626 1747 2399 725 Core 124 | . . . . 118 . 6 Treads 4333 | . 728 1253 626 1629 97 . Legs 95 | 22 72 . . . . 1 Wheels . | . . . . . . . Hover . | . . . . . . . Flight 3020 | . . . . . 2302 718 Fastest Speed 37 | 120 120 240 240 50 37 40 Average Speed 146 | 120 176 240 240 201 43 77 Slowest Speed 320 | 120 240 240 320 240 240 120 Overloaded Moves . | . . . . . . . Propulsion Burnouts . | . . . . . . . Robots Hopped 10 | . . . . . 10 . Potential Cave-ins 4 | . . . . . 4 . Cave-ins Triggered . | . . . . . . . Exploration Rate (%) 65 | 3 100 72 88 83 64 49 Regions Visited 6 Branch Regions 4 Pre-discovered Areas 12 | . 3 1 4 3 1 . Known Exits Taken 2 | . 1 . . . 1 . Unknown Exits Taken 4 | 1 . 1 1 1 . . Scrap Searched 8 | . . 3 . 5 . . Spaces Dug 181 | . . . 4 . 163 14 Terrain Destroyed 297 | . 22 10 5 . 176 84 Melee 34 | . . . . . 34 . Projectile 14 | . . 1 5 . 6 2 AOE 249 | . 22 9 . . 136 82 Terrain Rammed . | . . . . . . . Walls Destroyed . | . . . . . . . Machines Disabled . | . . . . . . . Actions | -11 -10 -10 -9 -9 -6 -6 --------- Run | Yrd Mat Sub Rec Scr Fac Ext Total 9085 | 28 1334 1510 681 1806 2655 1071 Wait 860 | . 424 155 21 5 67 188 Move 7547 | 21 799 1252 625 1746 2379 725 Hop 9 | . . . . . 9 . Pick Up 91 | . 17 7 17 25 15 10 Fast Attach 31 | 1 2 7 1 4 16 . Attach 39 | . 2 3 . . 21 13 Detach 23 | . . 1 . . 20 2 Swap 43 | . 19 6 2 2 3 11 Drop 94 | . 15 24 5 23 20 7 Fire 200 | 6 47 55 8 1 26 57 Melee 68 | . . . . . 63 5 Ram . | . . . . . . . Kick . | . . . . . . . Crush 11 | . 9 . 2 . . . Escape Stasis 16 | . . . . . 16 . Rewire 53 | . . . . . . 53 Trap . | . . . . . . . Miscellaneous . | . . . . . . . Route ------- -11/Scrapyard -10/Materials (discovered 5 exits: *Mat x3 / [*Min] / *Sub) -10/Subcaves (discovered 3 exits: *Mat x2 / *Rec) -9/Recycling (discovered 2 exits: [*Fac] / *Scr) -9/Scraptown (discovered 2 exits: *Fac x2) -6/Factory (discovered 6 exits: *Fac x2 / *Low x2 / *Ext x2) -6/Extension History --------- Turn | Location | Event 18 | -11/Scrapyard | Discovered new exit (range 3) 45 | -11/Scrapyard | Entered Materials 105 | -10/Materials | Discovered new exit (range 16) 310 | -10/Materials | Build established: Mutant 599 | -10/Materials | Central database locked down 1123 | -10/Materials | Discovered new exit (range 5) 1185 | -10/Materials | Learned 4 Recycling zone layouts 1262 | -10/Materials | Identified exit to Materials 1328 | -10/Materials | Learned Storage stockpile data 1431 | -10/Materials | Learned Storage stockpile data 1534 | -10/Materials | Learned 8 Materials zone layouts 1582 | -10/Materials | Learned location of Storage (-9) 1641 | -10/Materials | Identified exit to Subcaves 1641 | -10/Materials | Learned location of 1 exit from Materials 2087 | -10/Materials | Entered Subcaves 2088 | -10/Subcaves | Approached by a straggling Scientist 2088 | -10/Subcaves | Identified exit to Materials 2461 | -10/Subcaves | Shifting Twisted Machinery released Sub. Power Source 2620 | -10/Subcaves | Found SUBCON Basin 3676 | -10/Subcaves | Visited 4L-MR0's lab 4094 | -10/Subcaves | Found Flightbrick 4324 | -10/Subcaves | Build established: Scavenger-Mutant 4742 | -10/Subcaves | Discovered new exit (range 12) 5202 | -10/Subcaves | Shifting Twisted Machinery released Flamer 5231 | -10/Subcaves | Shifting Twisted Machinery released Mak. System Shield 5436 | -10/Subcaves | Entered Recycling 5442 | -9/Recycling | Core integrity fell below 50% 5838 | -9/Recycling | Scanned before Scraplab entrance 5872 | -9/Recycling | Entered Scraplab 6054 | -9/Recycling | Discovered new exit (range 16) 7003 | -9/Recycling | Discovered new exit (range 3) 7008 | -9/Recycling | Entered Scraptown 7337 | -9/Scraptown | Visited Red Mages 7378 | -9/Scraptown | Visited CR-KLE's Repair Center 7760 | -9/Scraptown | Visited UFD Registry 7760 | -9/Scraptown | Registered with UFD as "Quantumkit" 7887 | -9/Scraptown | Scanned Subdweller tech in exchange for log data 7895 | -9/Scraptown | Learned Research garrison access intel 7897 | -9/Scraptown | Learned Factory emergency access door positions 7925 | -9/Scraptown | Discovered new exit (range 11) 8093 | -9/Scraptown | Visited Cyclists 8112 | -9/Scraptown | Entered Cyclist Reading Room 8165 | -9/Scraptown | Visited SPCMW 8199 | -9/Scraptown | Build established: Mutant 8225 | -9/Scraptown | Visited Comm Corps 8304 | -9/Scraptown | Visited TADAMA 8422 | -9/Scraptown | Visited Science Guys 8487 | -9/Scraptown | Received an X-ray algorithm 8501 | -9/Scraptown | Visited Supply Room 8542 | -9/Scraptown | Visited Science Testing Area 8575 | -9/Scraptown | Visited Infowarlord's Domain 8623 | -9/Scraptown | Visited Derelict Rescue Squad 8655 | -9/Scraptown | Visited DA-N13 Charitable Foundation 8680 | -9/Scraptown | Found DCF Scrap (29 items) 8712 | -9/Scraptown | Visited Cartography Club 8757 | -9/Scraptown | Visited Abandonware Association 8781 | -9/Scraptown | Learned abandonware demo "POISON.EXE" 8781 | -9/Scraptown | Learned abandonware demo "REBOOT5.EXE" 8844 | -9/Scraptown | Visited Scrap Suit Storage 8882 | -9/Scraptown | Visited Scrapoid Pod Storage 9132 | -9/Scraptown | Learned location of Recycling (-9) 9132 | -9/Scraptown | Learned 8 Materials zone layouts 9132 | -9/Scraptown | Learned 8 Factory zone layouts 9132 | -9/Scraptown | Learned 20 Factory zone layouts 9132 | -9/Scraptown | Learned 4 Mines zone layouts 9132 | -9/Scraptown | Learned 12 Lower Caves zone layouts 9132 | -9/Scraptown | Learned 20 Upper Caves zone layouts 9132 | -9/Scraptown | Learned 20 Proximity Caves zone layouts 9132 | -9/Scraptown | Learned 4 Hub_04(d) zone layouts 9132 | -9/Scraptown | Learned 4 Armory zone layouts 9132 | -9/Scraptown | Learned Storage emergency access door positions 9132 | -9/Scraptown | Learned location of 1 exit from Lower Caves 9132 | -9/Scraptown | Learned location of 3 exits from Proximity Caves 9136 | -9/Scraptown | Found Deep Structural Scanner 9236 | -9/Scraptown | Found Spectral Analyzer 10490 | -9/Scraptown | Met Optimus 10490 | -9/Scraptown | Accepted into 0bPrime 10571 | -9/Scraptown | Civil war broke out across Scraptown 10575 | -9/Scraptown | Discovered new exit (range 5) 10586 | -9/Scraptown | Entered Factory 10586 | -6/Factory | Evolved 8 slots: Propulsion x3, Utility x5 10587 | -6/Factory | Identified exit to Lower Caves 10588 | -6/Factory | Identified exit to Factory 10783 | -6/Factory | Attached Flightbrick, gained temporary slots: Utility x3 10855 | -6/Factory | Tech Extrapolator generated special schematic: Deep Structural Scanner 10915 | -6/Factory | Tech Extrapolator generated special schematic: Machine Rigger 10920 | -6/Factory | Repaired Spear? 11040 | -6/Factory | Allied Derelicts emerged from ambush trap array 11073 | -6/Factory | Loaded intel: 8 recycling unit locations 11146 | -6/Factory | Learned location of Protoforge (-3) 11165 | -6/Factory | Allied Derelicts emerged from ambush trap array 11207 | -6/Factory | Identified exit to Extension 11467 | -6/Factory | Fabricated Machine Rigger? 11590 | -6/Factory | Garrison activated, responded to threat 11688 | -6/Factory | Spotted B-75 Beast 11781 | -6/Factory | Tech Extrapolator generated special schematic: Energy Deflector 11783 | -6/Factory | Scrapoids reinforcements arrived? 11982 | -6/Factory | System corruption reached 10% 12004 | -6/Factory | Entered Extension 12006 | -6/Extension | Tech Extrapolator generated special schematic: Active Sensor Spoofer 12121 | -6/Extension | Build established: Hacker-Mutant 12515 | -6/Extension | Rescued a captive Derelict 12563 | -6/Extension | Rescued a captive Derelict 12875 | -6/Extension | Spotted B-75 Beast 12932 | -6/Extension | Destroyed B-75 Beast 12936 | -6/Extension | Spotted B-75 Beast 12979 | -6/Extension | Disrupted transfer network 12995 | -6/Extension | Lost 5 allies 13004 | -6/Extension | Core integrity fell below 50% 13015 | -6/Extension | Core integrity fell below 20% 13018 | -6/Extension | Destroyed by B-75 Beast with Heavy Plasma Cannon Last Messages --------------- 13002_ Prc. Assault Rifle destroyed. 13002_ Seismic Detector destroyed. 13002_ Carbon-fiber Leg destroyed. 13003_ Myomer Leg destroyed. 13003_ Acquired 37 matter. 13005_ Imp. Hacking Suite destroyed. 13008_ Imp. Reaction Control System destroyed. 13008_ Critical hit (Meltdown: +320). 13008_ Phasing Sabre destroyed. 13008_ Knocked back. 13009_ Overheating: Matter decay (-21). 13009_ U-05 Engineer builds a Wall. 13010_ Flexi-carbon Leg destroyed. 13011_ Knocked back. 13012_ Acquired 14 matter. 13013_ Prc. Assault Rifle destroyed. 13014_ Knocked back. 13015_ Acquired 15 matter. 13017_ System corrupted: Heat flow error (+147). 13017_ Y-54 Guardian destroyed. Map ----- +----------------------------------------------------+ | ########### #### ####??????????????? | | ########### #### ####??????????????? | | ########### + ####??????????????? | | ########### ############# ####??????????????? | | + ############# ####??????????????? | | ########### ############# ####??????????????? | | ############################## ####??????????????? | | #####################?????#### ####??????????????? | | #####################?????#### ####??????????????? | | ???????##############?????#### ####??????????????? | | ??????????????????????????#### ####??????????????? | | ??????????????????????????#### ####??????????????? | | ??????????????????????????#### ####??????????????? | | ??????????????????????????##T# ####??????????????? | | ?????????????????????????? " ####??????????????? | | ?????????????????????????? " # ####??????????????? | | ??????????????????????????## # ####??????????????? | | ??????????????????????????#### ####??????????????? | | ??????????????????????????#### #####??#??????????? | | ??????????????????????????#### ### ## ##?????????? | | ??????????????????????????##"" "" ""????????? | | ############################ " " " ???????? | | ############################ ??????? | | ############################ R ??????? | | ############################ % ??????? | | @%=% ?????? | | %Y!%=u%!! A ?????? | | = % % =%BB=!] |= ?????? | | !%| *=BB%=!=%! ????? | | =! k !%*%u%==%*%* R ????? | | ############################! #????? | | #################### ####### ??????? | | ################### ######## ??????? | | ############################ ???????????? | | ?????????????????????????????? ???????????? | | ??????????????????????????????###T#""????????????? | | ?????????????????????????????????#???????????????? | | ?????????????????????????????????????????????????? | | | | | | | | | | | | | | | | | | | | | | | | | +----------------------------------------------------+ Best States ------------- Heat Dissipation 37 Energy Generation 18 Energy Capacity 310 Matter Stores 300 Matter Capacity 300 Sight Range 24 Terrain Scan Density 10 Jamming Range 12 Armor Coverage 375 Evasion (%) 62 Armor Integrity Analysis 30 Recoil Reduction 2 Salvage Targeting 4 Offensive Hacking 22 Authchip Count 4 Item Schematics ----------------- Deep Structural Scanner | -6/Factory | Extrapolated Machine Rigger | -6/Factory | Extrapolated Mak. Spear | -6/Factory | Extrapolated Beamcaster | -6/Factory | Extrapolated Impulse Thruster | -6/Factory | Hacked Imp. Particle Charger | -6/Factory | Hacked 0b10 Decoder Chip [Skirmisher] | -6/Factory | Extrapolated Mak. System Restoration Module | -6/Factory | Extrapolated Bore Cannon | -6/Factory | Extrapolated Mak. Core Shielding | -6/Factory | Extrapolated Mak. Terrain Scanner | -6/Factory | Extrapolated Imp. Hacking Suite | -6/Factory | Hacked Slug Cannon | -6/Factory | Extrapolated Mak. Coolant Network | -6/Factory | Extrapolated Energy Deflector | -6/Factory | Extrapolated 0b10 Decoder Chip [Generic] | -6/Factory | Extrapolated 0b10 Decoder Chip [Scout] | -6/Factory | Extrapolated Mak. ECM Suite | -6/Factory | Extrapolated Active Sensor Spoofer | -6/Extension | Extrapolated Mak. Heavy Armor Plating | -6/Extension | Extrapolated Mak. Kinetic Plating | -6/Extension | Extrapolated Mak. Light Armor Plating | -6/Extension | Extrapolated Mak. Hacking Suite | -6/Extension | Extrapolated Hvy. Beamcaster | -6/Extension | Extrapolated Mak. Salvage Targeting Computer | -6/Extension | Extrapolated Robot Schematics ------------------ None Fabricated ------------ Machine Rigger | x1 | -6/Factory Repaired ---------- Spear | 27% | -6/Factory Alien Tech Used ----------------- None Achievements -------------- None Challenges ------------ None Game ------ Seed MetafiberShrapnelFalx Manual? 0 Play Time 01:41:16 Cumulative 460.0 hours Start 2025.06.18 @ 23:23:36 End 2025.06.19 @ 01:11:01 Sessions 1 Manual Loads 0 Difficulty Rogue Special Mode None Game No. 242 Rogue 179 Adventurer 63 Explorer 0 Win Type - Total 9 Types 8/0/0/1/0/0/0/0/0/0 Lore% 89 Gallery% 80 Achievement% 66 Wizard Run 0 Options --------- Layout 1 ASCII 0 Keyboard 1 Movement Numpad Keybinds 0 Fullscreen 1 Font 24/Terminus Map View 50x35 Zoom Use 0% Tactical HUD 1 Map Filters NONE Filters NONE Steam 1 RUN: decc9433-97de-4869-afdc-468774e93f7d